bitfinex/quotes_ETHUSD_20250210
["timestamp","ask_amount","ask_price","bid_price","bid_amount"]
[1739176556803,3.78081,2645.0,2644.7,2.19543439]
[1739176556965,9.87735,2645.1,2644.7,2.19543439]
[1739176557283,9.10065,2645.1,2645.0,2.19543439]
[1739176558054,5.32,2645.1,2645.0,2.19543439]
[1739176559411,3.78072,2645.0,2644.7,2.19543439]
[1739176560564,6.0967,2645.1,2644.8,0.12331485]
[1739176560761,5.32,2645.1,2644.7,2.19543439]
[1739176560998,5.32,2645.1,2645.0,2.19543439]
[1739176561209,5.32,2645.1,2645.0,2.34183439]
[1739176561452,5.32,2645.1,2645.0,2.46514149]
[1739176561604,3.78029,2645.3,2645.0,2.46514149]
[1739176561605,0.7767,2645.6,2645.0,0.2697071]
[1739176561894,3.77979,2645.7,2645.5,2.19543439]
[1739176562194,6.0967,2645.8,2645.5,2.19543439]
[1739176562195,0.7767,2645.8,2645.6,0.12310566]
[1739176562382,3.77952,2645.9,2645.6,0.12310566]
[1739176562584,0.7767,2646.2,2645.6,0.12310566]
[1739176562585,3.77921,2646.1,2645.8,2.19543439]
[1739176562789,3.77943,2645.9,2645.8,2.19543439]
[1739176563600,3.77943,2645.9,2645.3,0.1464]
[1739176563767,3.77995,2645.6,2645.5,2.19543439]
[1739176564593,3.77976,2645.7,2645.5,2.19543439]
[1739176564797,0.7767,2645.8,2645.5,2.19543439]
[1739176564962,3.77948,2645.9,2645.5,2.19543439]
[1739176565171,3.77948,2645.9,2645.8,2.19543439]
[1739176565520,4.55576,2646.2,2645.8,2.19543439]
[1739176565689,3.77906,2646.2,2646.1,2.19543439]
[1739176565874,4.55542,2646.4,2646.1,2.19543439]
[1739176566079,5.32,2646.5,2646.1,2.19543439]
[1739176566080,3.77858,2646.5,2646.1,2.34183439]
[1739176566415,3.77858,2646.5,2646.4,2.19543439]
[1739176567213,3.77836,2646.7,2646.4,2.19543439]
[1739176567393,5.32,2646.9,2646.4,2.19543439]
[1739176567600,5.32,2646.9,2646.7,2.19543439]
[1739176567788,8.32,2646.9,2646.7,2.19543439]
[1739176567977,3.0,2646.9,2646.7,2.19543439]
[1739176568173,6.778,2646.9,2646.7,2.19543439]
[1739176568477,3.77814,2646.8,2646.7,2.19543439]
[1739176568873,6.778,2646.9,2646.7,2.19543439]
[1739176569816,3.77814,2646.8,2646.7,2.19543439]
[1739176570012,4.60037,2647.1,2646.7,2.19543439]
[1739176570198,3.77777,2647.1,2646.7,2.19543439]
[1739176570404,3.77777,2647.1,2646.8,0.12128596]
[1739176570405,3.77801,2646.9,2646.8,0.12128596]
[1739176570712,3.77814,2646.8,2646.7,2.19543439]
[1739176571280,3.77814,2646.8,2646.7,2.3166043]
[1739176572015,3.77814,2646.8,2646.7,2.19543439]
[1739176572176,7.55614,2646.9,2646.7,2.19543439]
[1739176572380,3.77814,2646.8,2646.7,2.3167513]
[1739176573108,3.77801,2646.9,2646.7,2.3167513]
[1739176573611,3.77804,2646.9,2646.7,2.3167513]
[1739176573811,6.7779,2647.0,2646.7,2.3167513]
[1739176573997,3.77803,2646.9,2646.7,2.3167513]
[1739176574525,3.77771,2647.1,2646.7,2.3167513]
[1739176574703,7.55556,2647.1,2646.7,2.3167513]
[1739176574902,3.77721,2647.5,2647.0,2.19543439]
[1739176575303,3.77743,2647.3,2646.7,0.12131691]
[1739176575489,3.0,2647.4,2646.7,0.12131691]
[1739176575490,3.0,2647.4,2647.2,2.19543439]
[1739176575696,3.77732,2647.4,2647.2,2.19543439]
[1739176575890,3.77743,2647.3,2647.2,2.19543439]
[1739176576600,3.77743,2647.3,2647.2,2.31508751]
[1739176578615,3.77743,2647.3,2647.2,2.19543439]
[1739176580617,3.77743,2647.3,2647.2,2.3149947]
[1739176580815,3.77743,2647.3,2647.2,2.19543439]
[1739176581610,7.55471,2647.4,2647.2,2.19543439]
[1739176581810,3.77743,2647.3,2647.2,2.31508751]
[1739176582686,3.77743,2647.3,2647.2,2.19543439]
[1739176582882,4.55703,2647.3,2647.2,0.11955258]
[1739176583187,4.55703,2647.3,2646.9,2.19543439]
[1739176583188,3.77786,2647.0,2646.9,2.19543439]
[1739176583942,3.77786,2647.0,2646.9,2.31509525]
[1739176585389,3.77786,2647.0,2646.9,0.11966086]
[1739176585613,3.77826,2646.8,2646.6,2.19543439]
[1739176585918,7.55649,2646.8,2646.6,2.19543439]
[1739176586120,3.77828,2646.7,2646.6,2.19543439]
[1739176586623,3.77823,2646.8,2646.6,2.19543439]
[1739176586798,9.09764,2647.2,2646.7,0.1464]
[1739176586994,9.09764,2647.2,2646.9,2.19543439]
[1739176587393,3.77786,2647.0,2646.9,2.19543439]
[1739176587894,3.77786,2647.0,2646.6,2.19543439]
[1739176588103,3.77828,2646.7,2646.6,2.19543439]
[1739176588529,3.77812,2646.9,2646.6,2.19543439]
[1739176588942,3.77822,2646.8,2646.6,2.19543439]
[1739176589703,3.77812,2646.9,2646.6,2.19543439]
[1739176590006,3.77828,2646.7,2646.6,2.19543439]
[1739176590619,3.77871,2646.4,2646.3,2.19543439]
[1739176591005,9.87793,2646.7,2646.0,2.19543439]
[1739176591220,3.77916,2646.1,2646.0,2.19543439]
[1739176591848,3.77916,2646.1,2646.0,2.31561354]
[1739176593423,3.77916,2646.1,2646.0,2.19543439]
[1739176593651,3.779,2646.2,2645.7,2.19543439]
[1739176593652,3.77957,2645.8,2645.7,2.19543439]
[1739176594309,3.77957,2645.8,2645.7,2.31589986]
[1739176595134,3.77928,2646.0,2645.7,2.31589986]
[1739176595337,3.77928,2646.0,2645.8,0.1464]
[1739176595638,3.77906,2646.2,2645.8,0.2671209]
[1739176595837,3.77906,2646.2,2646.1,2.19543439]
[1739176596346,3.77906,2646.2,2646.1,2.31615529]
[1739176597038,6.77874,2646.4,2646.1,2.31615529]
[1739176597039,10.55757,2646.4,2646.1,2.31615529]
[1739176597235,3.77887,2646.3,2646.1,2.31615529]
[1739176598302,3.77846,2646.6,2646.1,2.31615529]
[1739176598504,9.09829,2646.7,2646.5,2.19543439]
[1739176598841,9.09698,2647.7,2646.6,0.12086783]
[1739176599069,3.77766,2647.2,2647.0,2.19543439]
[1739176599222,7.55537,2647.2,2647.0,2.19543439]
[1739176599422,7.55537,2647.2,2647.1,0.12060475]
[1739176600755,7.55537,2647.2,2646.4,0.1464]
[1739176600756,3.77766,2647.2,2646.7,2.19543439]
[1739176600955,3.77814,2646.8,2646.7,2.19543439]
[1739176601155,3.77794,2647.0,2646.4,0.1464]
[1739176601156,3.0,2646.9,2646.4,2.19543439]
[1739176601331,3.77857,2646.5,2646.4,2.19543439]
[1739176602575,3.7784,2646.7,2646.4,2.19543439]
[1739176602874,3.77847,2646.6,2646.4,2.19543439]
[1739176603080,3.7784,2646.7,2646.4,2.19543439]
[1739176603229,6.77803,2646.9,2646.4,2.19543439]
[1739176603433,6.77803,2646.9,2646.7,2.19543439]
[1739176603434,6.77819,2646.8,2646.7,2.19543439]
[1739176603648,6.77819,2646.8,2646.6,2.69370114]
[1739176603848,7.55562,2647.1,2646.6,2.69370114]
[1739176604052,3.77778,2647.1,2646.9,2.69370114]
[1739176604350,3.77786,2647.0,2646.9,2.69370114]
[1739176604544,3.77815,2646.8,2646.6,2.69370114]
[1739176604761,3.77786,2647.0,2646.6,2.69370114]
[1739176606525,3.77786,2647.0,2646.7,0.12045003]
[1739176607455,3.77803,2646.9,2646.7,0.12045003]
[1739176607629,3.77758,2647.2,2646.7,0.12045003]
[1739176607835,3.77786,2647.0,2646.9,2.69370114]
[1739176608368,3.77786,2647.0,2646.9,2.81415117]
[1739176609660,3.77698,2647.7,2647.0,3.92417]
[1739176609851,3.77698,2647.7,2647.4,2.69370114]
[1739176610051,3.77714,2647.5,2647.4,2.69370114]
[1739176610434,7.55395,2647.7,2647.4,2.81356313]
[1739176610637,3.77697,2647.7,2647.4,2.81356313]
[1739176610966,3.77714,2647.5,2647.4,2.81356313]
[1739176611367,3.77696,2647.7,2647.4,2.81356313]
[1739176611966,6.77665,2647.9,2647.4,2.81356313]
[1739176612271,3.77687,2647.7,2647.4,2.81356313]
[1739176612635,3.77706,2647.6,2647.4,2.81356313]
[1739176612836,3.77687,2647.7,2647.4,2.81356313]
[1739176613034,6.77664,2647.9,2647.4,2.81356313]
[1739176613465,3.77664,2647.9,2647.7,2.69370114]
[1739176614035,3.77664,2647.9,2647.8,0.11927426]
[1739176614270,3.77664,2647.9,2647.7,2.69370114]
[1739176614469,3.77664,2647.9,2647.8,0.11917377]
[1739176614637,3.77664,2647.9,2647.7,2.69370114]
[1739176614965,3.77609,2648.3,2647.8,0.11917377]
[1739176615137,3.77578,2648.5,2648.0,2.84010114]
[1739176615339,3.77597,2648.4,2648.1,0.11917377]
[1739176616064,3.77578,2648.5,2648.3,2.69370114]
[1739176616368,3.77578,2648.5,2648.4,0.11917377]
[1739176616665,3.77578,2648.5,2648.3,2.69370114]
[1739176616865,3.77586,2648.4,2648.3,2.69370114]
[1739176620666,3.77546,2648.7,2648.3,2.69370114]
[1739176621746,3.77546,2648.7,2648.4,0.11840875]
[1739176621952,3.77572,2648.5,2648.4,0.11840875]
[1739176623071,6.77572,2648.5,2648.4,0.11840875]
[1739176623397,3.77629,2648.1,2648.0,2.69370114]
[1739176624046,3.96600118,2648.8,2647.7,2.69370114]
[1739176624047,0.7895,2648.0,2647.7,2.69370114]
[1739176624248,3.77658,2647.9,2647.7,2.69370114]
[1739176624448,3.77672,2647.8,2647.7,2.69370114]
[1739176624667,3.77658,2647.9,2647.4,2.84010114]
[1739176624872,3.77688,2647.7,2647.4,2.84010114]
[1739176625678,3.77688,2647.7,2647.6,2.18721954]
[1739176627366,3.7895,2648.0,2647.3,2.18721954]
[1739176627583,3.7895,2648.0,2647.0,2.18721954]
[1739176627584,4.56664,2647.5,2647.0,2.18721954]
[1739176627781,3.77771,2647.1,2647.0,2.18721954]
[1739176628166,3.77762,2647.2,2647.0,2.18721954]
[1739176628472,3.77771,2647.1,2647.0,2.18721954]
[1739176628680,3.77771,2647.1,2646.7,2.18721954]
[1739176628979,3.77809,2646.9,2646.7,2.18721954]
[1739176629401,3.77814,2646.8,2646.7,2.18721954]
[1739176629749,3.77832,2646.7,2646.4,2.69404151]
[1739176630598,3.77857,2646.5,2646.4,2.69404151]
[1739176630898,3.77852,2646.6,2646.4,2.69404151]
[1739176631748,3.77857,2646.5,2646.4,2.69404151]
[1739176633194,7.55675,2646.7,2646.4,2.69404151]
[1739176633389,3.77832,2646.7,2646.4,2.69404151]
[1739176633590,3.77857,2646.5,2646.4,2.69404151]
[1739176635977,3.77843,2646.6,2646.4,2.69404151]
[1739176636628,3.77843,2646.6,2646.5,0.09957677]
[1739176636797,6.77781,2647.1,2646.6,0.1464]
[1739176636988,3.77796,2647.0,2646.8,2.69404151]
[1739176637189,3.778,2646.9,2646.5,2.69404151]
[1739176637368,3.7784,2646.7,2646.5,2.69404151]
[1739176638228,7.55682,2646.7,2646.5,2.69404151]
[1739176638500,3.77859,2646.5,2646.2,2.69404151]
[1739176639301,3.77859,2646.5,2645.6,8.86]
[1739176639302,3.77995,2645.6,2645.2,2.69404151]
[1739176639505,3.78024,2645.4,2645.2,2.69404151]
[1739176641370,3.78002,2645.5,2645.2,2.69404151]
[1739176641565,3.78027,2645.4,2645.2,2.69404151]
[1739176642103,3.78028,2645.3,2645.2,2.69404151]
[1739176642306,3.78027,2645.4,2645.2,2.69404151]
[1739176642470,4.5698,2645.6,2645.2,2.69404151]
[1739176642671,7.5599,2645.6,2645.2,2.69404151]
[1739176643604,3.78002,2645.5,2645.2,2.69404151]
[1739176644132,3.78001,2645.5,2645.2,2.69404151]
[1739176644296,0.7899,2645.8,2645.2,2.69404151]
[1739176644617,5.01317463,2842.0,2645.6,0.1464]
[1739176644618,3.77915,2646.1,2645.6,0.1464]
[1739176644788,3.77915,2646.1,2645.8,2.69404151]
[1739176645305,3.77859,2646.5,2645.8,2.69404151]
[1739176645507,3.77857,2646.5,2646.2,2.69404151]
[1739176646305,3.77844,2646.6,2646.2,2.69404151]
[1739176647797,3.77881,2646.4,2646.2,2.69404151]
[1739176648000,3.77886,2646.3,2646.2,2.69404151]
[1739176648711,3.77881,2646.4,2646.0,0.1464]
[1739176649019,3.77886,2646.3,2646.0,0.1464]
[1739176649219,3.779,2646.2,2645.9,2.69404151]
[1739176649713,3.77907,2646.2,2645.9,2.69404151]
[1739176649930,3.77881,2646.4,2645.9,2.69404151]
[1739176650283,7.55763,2646.4,2645.9,2.69404151]
[1739176650687,7.55763,2646.4,2645.9,6.47347151]
[1739176650688,3.77881,2646.4,2645.9,6.47347151]
[1739176650893,3.7785,2646.6,2646.2,2.69404151]
[1739176651814,3.7785,2646.6,2646.3,0.0842798]
[1739176652310,3.7785,2646.6,2646.2,2.69404151]
[1739176652517,3.7785,2646.6,2646.4,0.0842798]
[1739176652714,3.0,2647.0,2646.5,2.84044151]
[1739176652715,3.77794,2647.0,2646.5,2.84044151]
[1739176653017,0.8218,2647.1,2646.5,10.48170131]
[1739176653018,3.77772,2647.1,2646.5,10.48170131]
[1739176653220,3.77772,2647.1,2646.5,6.70321131]
[1739176653386,3.77822,2646.8,2646.5,0.2306798]
[1739176653798,3.77794,2647.0,2646.5,0.2306798]
[1739176654000,3.77801,2646.9,2646.5,0.2306798]
[1739176654205,3.77801,2646.9,2646.5,2.92472131]
[1739176654518,3.77737,2647.4,2646.9,0.1464]
[1739176654686,3.7776,2647.2,2646.9,0.1464]
[1739176655020,3.7776,2647.2,2647.0,0.0838629]
[1739176656920,7.58611,2647.1,2647.0,0.0838629]
[1739176657088,3.77771,2647.1,2647.0,0.0838629]
[1739176657419,3.77789,2647.0,2646.8,2.69404151]
[1739176657921,3.77789,2647.0,2646.9,0.08367766]
[1739176658418,3.7776,2647.2,2646.9,0.08367766]
[1739176658588,3.77775,2647.1,2646.9,0.08367766]
[1739176659300,3.77786,2647.0,2646.9,0.08367766]
[1739176659996,3.7776,2647.2,2646.9,0.08367766]
[1739176660318,3.77771,2647.1,2646.5,6.61891151]
[1739176660516,3.77771,2647.1,2647.0,0.08367766]
[1739176660690,3.77771,2647.1,2646.5,6.61891151]
[1739176660889,3.77771,2647.1,2647.0,0.08367766]
[1739176661091,3.77771,2647.1,2646.5,6.61891151]
[1739176661292,3.77771,2647.1,2647.0,0.08367766]
[1739176661492,3.77771,2647.1,2646.5,6.61891151]
[1739176661707,3.77771,2647.1,2647.0,0.08367766]
[1739176661914,3.77771,2647.1,2646.8,2.18834769]
[1739176662100,3.77771,2647.1,2647.0,0.08367766]
[1739176662303,3.77771,2647.1,2646.8,2.18834769]
[1739176662501,3.77771,2647.1,2647.0,0.08367766]
[1739176662717,3.77771,2647.1,2646.8,2.18834769]
[1739176662917,3.77771,2647.1,2647.0,0.08316041]
[1739176663114,3.77797,2647.0,2646.8,2.18834769]
[1739176664417,3.77771,2647.1,2646.8,2.18834769]
[1739176665896,7.55553,2647.1,2646.8,2.18834769]
[1739176666092,3.77771,2647.1,2646.8,2.18834769]
[1739176666291,3.77787,2647.0,2646.8,2.18834769]
[1739176666733,3.77771,2647.1,2646.9,0.08326846]
[1739176667595,3.77786,2647.0,2646.9,0.08326846]
[1739176668632,3.77771,2647.1,2646.9,0.08326846]
[1739176669132,7.55553,2647.1,2646.9,0.08326846]
[1739176669333,3.77786,2647.0,2646.9,0.08326846]
[1739176670313,3.77771,2647.1,2646.9,0.08326846]
[1739176670733,7.55555,2647.1,2646.9,0.08326846]
[1739176671730,3.77771,2647.1,2646.9,0.08326846]
[1739176672148,3.77786,2647.0,2646.9,0.08326846]
[1739176673460,4.57926,2647.0,2646.9,0.08326846]
[1739176673767,7.57926,2647.0,2646.9,0.08326846]
[1739176673977,3.77831,2646.7,2646.2,2.33474769]
[1739176674283,3.77831,2646.7,2646.3,0.08330705]
[1739176674478,3.77831,2646.7,2646.2,2.33474769]
[1739176674677,3.77831,2646.7,2646.5,2.18834769]
[1739176674881,8.35729,2647.0,2646.5,2.18834769]
[1739176675084,3.77802,2646.9,2646.8,2.18834769]
[1739176675660,3.77802,2646.9,2646.8,2.2720407]
[1739176676445,3.77802,2646.9,2646.8,0.08369301]
[1739176676681,3.77836,2646.7,2646.5,2.18834769]
[1739176677154,3.77836,2646.7,2646.6,0.08369301]
[1739176678632,3.77806,2646.9,2646.6,0.08369301]
[1739176678831,3.77819,2646.8,2646.6,0.08369301]
[1739176680481,3.77806,2646.9,2646.6,0.08369301]
[1739176680664,3.77828,2646.7,2646.6,0.08369301]
[1739176681135,3.77828,2646.7,2646.5,2.18834769]
[1739176681335,3.77828,2646.7,2646.6,0.08369301]
[1739176681983,3.77815,2646.8,2646.6,0.08369301]
[1739176682483,3.77794,2647.0,2646.6,0.08369301]
[1739176682653,3.77794,2647.0,2646.8,2.18834769]
[1739176682849,3.77794,2647.0,2646.9,0.08380881]
[1739176686058,4.57904,2647.2,2646.9,0.08380881]
[1739176686252,8.35674,2647.2,2646.9,0.08380881]
[1739176686457,4.57904,2647.2,2646.9,0.08380881]
[1739176686768,3.77786,2647.0,2646.9,0.08380881]
[1739176687273,3.77786,2647.0,2646.8,2.18834769]
[1739176688374,3.77816,2646.8,2646.5,2.33474769]
[1739176688573,3.77816,2646.8,2646.5,2.18834769]
[1739176688754,0.8235,2646.7,2646.5,2.18834769]
[1739176689380,4.60182,2646.7,2646.5,2.18834769]
[1739176689879,3.77843,2646.6,2646.5,2.18834769]
[1739176691081,3.77806,2646.9,2646.5,2.18834769]
[1739176691281,3.77806,2646.9,2646.8,2.18834769]
[1739176696573,3.0,2647.0,2646.8,2.18834769]
[1739176696755,6.77787,2647.0,2646.8,2.27165475]
[1739176696964,3.0,2647.0,2646.8,2.27165475]
[1739176697166,3.778,2646.9,2646.8,2.27165475]
[1739176697685,9.0978,2647.1,2646.8,2.27165475]
[1739176697686,5.32,2647.1,2646.8,2.27165475]
[1739176699583,9.09776,2647.1,2646.8,2.27165475]
[1739176701589,5.32,2647.1,2646.9,0.1464]
[1739176701994,5.32,2647.1,2647.0,0.08338424]
[1739176702359,3.77761,2647.2,2647.0,0.08338424]
[1739176702693,3.77771,2647.1,2647.0,0.08338424]
[1739176702893,3.77771,2647.1,2646.8,2.18834769]
[1739176703488,7.55532,2647.2,2646.9,0.08338424]
[1739176703654,3.77761,2647.2,2646.9,0.08338424]
[1739176704062,7.55528,2647.2,2646.9,0.08338424]
[1739176704678,3.77761,2647.2,2646.9,0.08338424]
[1739176705196,3.77786,2647.0,2646.9,0.08338424]
[1739176705585,7.55528,2647.2,2646.9,0.08338424]
[1739176705897,7.55528,2647.2,2647.0,0.08338424]
[1739176706097,3.77761,2647.2,2646.8,2.18834769]
[1739176706298,3.77761,2647.2,2647.1,0.08338424]
[1739176706496,3.77761,2647.2,2646.8,2.18834769]
[1739176706667,7.55527,2647.2,2647.1,0.08338424]
[1739176706990,7.55527,2647.2,2646.8,2.18834769]
[1739176707191,3.77761,2647.2,2647.1,0.08338424]
[1739176707390,3.77761,2647.2,2646.8,2.18834769]
[1739176707598,7.55531,2647.2,2647.1,0.08338424]
[1739176707797,3.77772,2647.1,2646.8,2.18834769]
[1739176708205,3.77786,2647.0,2646.8,2.18834769]
[1739176708871,4.5841,2646.9,2646.5,2.18834769]
[1739176710206,0.8061,2646.9,2646.5,2.18834769]
[1739176710366,3.77822,2646.8,2646.5,2.18834769]
[1739176711072,12.87155511,2647.5,2646.5,2.18834769]
[1739176711287,3.77779,2647.1,2646.8,2.18834769]
[1739176711779,3.77759,2647.2,2646.9,0.08309867]
[1739176713069,4.58341,2647.4,2646.9,0.08309867]
[1739176713276,3.7773,2647.4,2647.1,2.18834769]
[1739176713471,3.77715,2647.5,2647.2,0.1464]
[1739176713678,6.77715,2647.5,2647.4,2.18834769]
[1739176714083,6.77715,2647.5,2647.4,2.27133832]
[1739176714410,6.77715,2647.5,2647.4,0.08299063]
[1739176714788,3.77729,2647.4,2647.1,2.18834769]
[1739176717875,0.8117,2647.3,2647.1,2.18834769]
[1739176718617,3.77786,2647.0,2646.8,2.18834769]
[1739176721178,3.77757,2647.2,2646.8,2.18834769]
[1739176721384,3.77772,2647.1,2646.8,2.18834769]
[1739176722382,3.77773,2647.1,2646.8,2.18834769]
[1739176724016,0.8117,2647.3,2646.8,2.18834769]
[1739176724199,4.58985,2646.8,2646.5,2.18834769]
[1739176724811,3.77841,2646.7,2646.5,2.18834769]
[1739176725205,4.58985,2646.8,2646.5,2.18834769]
[1739176726621,0.8117,2646.8,2646.6,0.08289803]
[1739176727420,3.77792,2647.0,2646.7,0.1464]
[1739176727721,3.77792,2647.0,2646.8,2.27146183]
[1739176728024,3.778,2646.9,2646.8,2.27146183]
[1739176728333,3.778,2646.9,2646.8,0.08311414]
[1739176728637,3.778,2646.9,2646.5,2.18834769]
[1739176728790,3.778,2646.9,2646.8,0.08306783]
[1739176728994,4.5899,2646.8,2646.5,2.18834769]
[1739176729738,3.77829,2646.7,2646.5,2.18834769]
[1739176730721,0.8117,2646.8,2646.5,2.18834769]
[1739176730926,4.58986,2646.8,2646.5,2.18834769]
[1739176732016,0.8117,2646.8,2646.5,2.18834769]
[1739176732327,3.77833,2646.7,2646.5,2.18834769]
[1739176734102,3.77805,2646.9,2646.5,2.18834769]
[1739176734103,4.58305,2646.9,2646.5,2.18834769]
[1739176735609,3.77781,2647.1,2646.8,2.18834769]
[1739176737727,6.77758,2647.2,2646.8,2.18834769]
[1739176738296,3.77778,2647.1,2646.8,2.18834769]
[1739176738496,6.77758,2647.2,2646.9,0.08358494]
[1739176740998,6.77758,2647.2,2646.8,2.18834769]
[1739176741200,6.77758,2647.2,2647.0,0.08358494]
[1739176741533,6.77758,2647.2,2646.8,2.18834769]
[1739176741699,6.77758,2647.2,2647.1,0.08339969]
[1739176741901,9.90235,2647.4,2647.1,2.18834769]
[1739176742124,9.90235,2647.4,2647.1,2.27174738]
[1739176742900,3.77751,2647.3,2647.1,2.27174738]
[1739176743516,3.77757,2647.2,2647.1,2.27174738]
[1739176743711,3.77757,2647.2,2647.1,0.08339969]
[1739176743916,3.77757,2647.2,2646.8,2.18834769]
[1739176744111,3.77757,2647.2,2647.1,0.08339969]
[1739176744437,3.77757,2647.2,2646.8,2.18834769]
[1739176747737,0.805,2647.4,2646.8,2.18834769]
[1739176748041,3.778,2646.9,2646.8,2.18834769]
[1739176748407,3.77815,2646.8,2646.5,2.18834769]
[1739176748633,8.36974,2647.0,2646.5,2.18834769]
[1739176748833,4.59176,2647.0,2646.5,2.18834769]
[1739176749280,7.55641,2646.8,2646.5,2.18834769]
[1739176749541,3.77815,2646.8,2646.5,2.18834769]
[1739176752847,4.59233,2646.6,2646.2,2.18834769]
[1739176753153,3.77861,2646.5,2646.2,2.18834769]
[1739176753713,0.8139,2646.6,2646.2,2.18834769]
[1739176754019,7.55666,2646.7,2646.5,2.18834769]
[1739176754346,3.77829,2646.7,2646.5,2.18834769]
[1739176754929,8.37008,2646.9,2646.5,2.18834769]
[1739176755115,3.77815,2646.8,2646.5,2.18834769]
[1739176756633,3.77815,2646.8,2646.6,0.0836853]
[1739176757856,3.77828,2646.7,2646.6,0.0836853]
[1739176761957,3.77815,2646.8,2646.6,0.0836853]
[1739176762536,7.5564,2646.8,2646.6,0.0836853]
[1739176763061,3.77828,2646.7,2646.6,0.0836853]
[1739176764663,4.59199,2646.9,2646.6,0.0836853]
[1739176764988,3.77816,2646.8,2646.6,0.0836853]
[1739176765367,3.74850694,2647.2,2646.6,0.2300853]
[1739176765368,0.8139,2647.1,2646.6,0.2300853]
[1739176765572,3.77729,2647.4,2646.9,0.1464]
[1739176765875,3.77729,2647.4,2646.8,5.96640769]
[1739176765876,3.77765,2647.2,2647.0,0.08384739]
[1739176766091,3.77771,2647.1,2647.0,0.08384739]
[1739176766254,3.77771,2647.1,2646.8,2.18834769]
[1739176766459,3.77797,2647.0,2646.8,2.18834769]
[1739176766691,3.77797,2647.0,2646.9,0.08351547]
[1739176766886,4.59187,2647.0,2646.9,0.08351547]
[1739176767094,3.77842,2646.7,2646.5,2.18834769]
[1739176767460,0.8316,2646.6,2646.5,2.18834769]
[1739176768010,4.61003,2646.6,2646.5,2.18834769]
[1739176768476,0.8316,2646.6,2646.5,2.18834769]
[1739176769561,4.61003,2646.6,2646.5,2.18834769]
[1739176769762,3.77807,2646.9,2646.5,2.18834769]
[1739176770063,3.77773,2647.1,2646.8,2.18834769]
[1739176770291,3.7779,2647.0,2646.8,2.18834769]
[1739176770984,3.77773,2647.1,2646.8,2.18834769]
[1739176771564,3.0,2647.4,2646.9,0.08380107]
[1739176771565,3.77732,2647.4,2646.9,0.08380107]
[1739176771961,4.60886,2647.5,2647.1,2.18834769]
[1739176772138,3.77726,2647.5,2647.1,2.18834769]
[1739176772352,7.5545,2647.5,2647.2,0.08366984]
[1739176772653,7.55448,2647.5,2647.2,0.08366984]
[1739176774225,3.77732,2647.4,2647.2,0.08366984]
[1739176774849,3.77724,2647.5,2647.2,0.08366984]
[1739176775172,0.75095808,2647.6,2647.4,2.18834769]
[1739176775312,3.77694,2647.7,2647.4,2.33474769]
[1739176775511,3.77694,2647.7,2647.5,0.08342286]
[1739176775965,3.0,2647.8,2647.5,0.08342286]
[1739176776558,3.0,2647.9,2647.5,0.08342286]
[1739176776725,6.77661,2647.9,2647.5,0.08342286]
[1739176777929,9.09632,2648.1,2647.7,2.18834769]
[1739176778268,9.09632,2648.1,2647.8,0.08307565]
[1739176778642,9.09632,2648.1,2647.7,2.18834769]
[1739176778842,9.09632,2648.1,2647.9,0.08213418]
[1739176779160,9.09632,2648.1,2647.7,2.18834769]
[1739176779468,12.09632,2648.1,2647.7,2.18834769]
[1739176779623,6.77632,2648.1,2647.8,0.08213418]
[1739176779827,6.77632,2648.1,2647.7,2.18834769]
[1739176780059,3.77644,2648.0,2647.8,0.08213418]
[1739176780562,3.77644,2648.0,2647.7,2.18834769]
[1739176780765,0.8254,2647.9,2647.4,2.33474769]
[1739176781070,3.77703,2647.6,2647.4,2.18834769]
[1739176781225,3.77714,2647.5,2647.4,2.18834769]
[1739176784374,3.77703,2647.6,2647.4,2.18834769]
[1739176785385,3.7768,2647.8,2647.4,2.18834769]
[1739176785588,3.77697,2647.7,2647.4,2.18834769]
[1739176786781,3.7768,2647.8,2647.4,2.18834769]
[1739176787093,3.7768,2647.8,2647.5,0.22795951]
[1739176787262,3.0,2647.8,2647.7,2.18834769]
[1739176787675,3.0,2647.8,2647.7,2.27022349]
[1739176787869,6.77672,2647.8,2647.7,2.27022349]
[1739176788075,6.77672,2647.8,2647.7,0.0818758]
[1739176788480,3.77689,2647.7,2647.5,0.1464]
[1739176788898,3.0,2647.8,2647.5,0.1464]
[1739176789195,6.77673,2647.8,2647.5,0.1464]
[1739176790182,6.77673,2647.8,2647.4,2.33474769]
[1739176790773,5.36051598,2648.0,2647.4,2.33474769]
[1739176790774,9.13706598,2648.0,2647.4,2.33474769]
[1739176790966,5.36051598,2648.0,2647.4,2.33474769]
[1739176791188,3.0,2647.8,2647.4,2.33474769]
[1739176791696,3.77675,2647.8,2647.4,2.33474769]
[1739176792067,3.77691,2647.7,2647.4,2.33474769]
[1739176792399,3.77713,2647.6,2647.4,2.18834769]
[1739176792893,3.7768,2647.8,2647.4,2.18834769]
[1739176793100,6.7768,2647.8,2647.4,2.18834769]
[1739176794203,3.0,2647.8,2647.4,2.18834769]
[1739176794378,6.77673,2647.8,2647.5,0.1464]
[1739176794579,3.0,2647.8,2647.5,0.1464]
[1739176795472,6.77673,2647.8,2647.5,0.1464]
[1739176795673,3.77687,2647.7,2647.4,2.18834769]
[1739176795896,3.77713,2647.6,2647.4,2.18834769]
[1739176796309,3.77687,2647.7,2647.4,2.18834769]
[1739176796872,3.0,2647.8,2647.4,2.18834769]
[1739176797273,6.77672,2647.8,2647.5,0.1464]
[1739176800273,3.0,2647.8,2647.5,0.1464]
[1739176800673,6.77672,2647.8,2647.5,0.1464]
[1739176801694,3.77686,2647.7,2647.6,0.08161347]
[1739176802097,7.53676,2647.7,2647.6,9.47e-06]
[1739176802301,7.53676,2647.7,2647.6,0.0786447]
[1739176802478,3.77716,2647.5,2647.1,2.18834769]
[1739176802825,3.77702,2647.6,2647.2,0.07879899]
[1739176803112,3.77686,2647.7,2647.4,2.18834769]
[1739176803421,3.7766,2647.9,2647.4,5.96562769]
[1739176803584,3.7766,2647.9,2647.7,2.18834769]
[1739176803778,7.55276,2648.1,2647.7,2.18834769]
[1739176804085,7.55276,2648.1,2647.8,0.07880671]
[1739176804475,3.77657,2647.9,2647.7,2.18834769]
[1739176805281,3.77635,2648.1,2647.7,2.18834769]
[1739176805891,7.55275,2648.1,2647.7,2.18834769]